[Event "Titled Tuesday Blitz June 27 Late 2023"]
[White "Zavortink, Matt"]
[Black "Ter-Sahakyan, Samvel"]
[WhiteFideId "2034263"]
[BlackFideId "13302531"]
[WhiteElo "2481"]
[BlackElo "2910"]
[Result "1/2-1/2"]
[Round "1"]
[TimeControl "180+2"]
[Date "2023.06.27"]
[WhiteClock "0:00:09"]
[BlackClock "0:00:03"]
[Board "38"]

1. Nf3 {[%clk 0:03:00]}  d5 {[%clk 0:02:59]} 2. g3 {[%clk 0:03:00]}  b6 {[%clk 0:02:59]} 3. Bg2 {[%clk 0:03:00]}  Bb7 {[%clk 0:03:00]} 4. O-O {[%clk 0:03:01]}  e6 {[%clk 0:03:00]} 5. c4 {[%clk 0:03:00]}  dxc4 {[%clk 0:02:59]} 6. Qa4+ {[%clk 0:02:59]}  Nd7 {[%clk 0:02:59]} 7. Qxc4 {[%clk 0:02:56]}  Ngf6 {[%clk 0:02:56]} 8. Nc3 {[%clk 0:02:54]}  c5 {[%clk 0:02:53]} 9. d4 {[%clk 0:02:40]}  Rc8 {[%clk 0:02:52]} 10. Rd1 {[%clk 0:02:35]}  Be7 {[%clk 0:02:46]} 11. dxc5 {[%clk 0:02:26]}  Bxc5 {[%clk 0:02:46]} 12. Qa4 {[%clk 0:02:18]}  Bc6 {[%clk 0:02:12]} 13. Qc2 {[%clk 0:01:57]}  O-O {[%clk 0:01:59]} 14. Bg5 {[%clk 0:01:31]}  Qe7 {[%clk 0:01:58]} 15. Rac1 {[%clk 0:01:11]}  h6 {[%clk 0:01:56]} 16. Bxf6 {[%clk 0:01:07]}  Nxf6 {[%clk 0:01:57]} 17. Ne5 {[%clk 0:01:03]}  Bxg2 {[%clk 0:01:57]} 18. Kxg2 {[%clk 0:01:04]}  Qb7+ {[%clk 0:01:54]} 19. Kg1 {[%clk 0:00:58]}  Rfd8 {[%clk 0:01:25]} 20. Rxd8+ {[%clk 0:00:53]}  Rxd8 {[%clk 0:01:26]} 21. Nd3 {[%clk 0:00:52]}  Bf8 {[%clk 0:01:11]} 22. Nb5 {[%clk 0:00:36]}  a6 {[%clk 0:01:11]} 23. Qc7 {[%clk 0:00:28]}  Qa8 {[%clk 0:00:58]} 24. Na3 {[%clk 0:00:25]}  Qb8 {[%clk 0:00:35]} 25. Qxb8 {[%clk 0:00:24]}  Rxb8 {[%clk 0:00:35]} 26. Nc4 {[%clk 0:00:23]}  Nd7 {[%clk 0:00:22]} 27. Nce5 {[%clk 0:00:22]}  Nc5 {[%clk 0:00:18]} 28. Nxc5 {[%clk 0:00:21]}  bxc5 {[%clk 0:00:19]} 29. b3 {[%clk 0:00:20]}  f6 {[%clk 0:00:14]} 30. Nd7 {[%clk 0:00:20]}  Rb5 {[%clk 0:00:12]} 31. Nxf8 {[%clk 0:00:12]}  Kxf8 {[%clk 0:00:12]} 32. Kf1 {[%clk 0:00:13]}  Ke7 {[%clk 0:00:12]} 33. e3 {[%clk 0:00:13]}  Kd6 {[%clk 0:00:11]} 34. Ke2 {[%clk 0:00:13]}  g5 {[%clk 0:00:09]} 35. f4 {[%clk 0:00:13]}  Rb8 {[%clk 0:00:08]} 36. Rd1+ {[%clk 0:00:12]}  Kc6 {[%clk 0:00:08]} 37. Kf3 {[%clk 0:00:11]}  a5 {[%clk 0:00:07]} 38. h4 {[%clk 0:00:08]}  gxh4 {[%clk 0:00:06]} 39. gxh4 {[%clk 0:00:09]}  a4 {[%clk 0:00:06]} 40. Rd3 {[%clk 0:00:08]}  Ra8 {[%clk 0:00:03]} 41. Kg4 {[%clk 0:00:07]}  Rg8+ {[%clk 0:00:02]} 42. Kh5 {[%clk 0:00:07]}  a3 {[%clk 0:00:02]} 43. Rc3 {[%clk 0:00:05]}  Kb5 {[%clk 0:00:01]} 44. Kxh6 {[%clk 0:00:04]}  Rg2 {[%clk 0:00:01]} 45. h5 {[%clk 0:00:03]}  Rxa2 {[%clk 0:00:01]} 46. Kg7 {[%clk 0:00:03]}  Rg2+ {[%clk 0:00:01]} 47. Kxf6 {[%clk 0:00:03]}  a2 {[%clk 0:00:01]} 48. Rc1 {[%clk 0:00:03]}  Kb4 {[%clk 0:00:02]} 49. h6 {[%clk 0:00:02]}  Kxb3 {[%clk 0:00:02]} 50. h7 {[%clk 0:00:02]}  Rh2 {[%clk 0:00:03]} 51. Kg7 {[%clk 0:00:02]}  Kb2 {[%clk 0:00:03]} 52. Rg1 {[%clk 0:00:02]}  a1=Q {[%clk 0:00:03]} 53. Rxa1 {[%clk 0:00:02]}  Kxa1 {[%clk 0:00:03]} 54. h8=Q {[%clk 0:00:03]}  Rxh8 {[%clk 0:00:03]} 55. Kxh8 {[%clk 0:00:04]}  c4 {[%clk 0:00:04]} 56. e4 {[%clk 0:00:05]}  c3 {[%clk 0:00:04]} 57. f5 {[%clk 0:00:06]}  exf5 {[%clk 0:00:04]} 58. exf5 {[%clk 0:00:06]}  c2 {[%clk 0:00:05]} 59. f6 {[%clk 0:00:06]}  c1=Q {[%clk 0:00:05]} 60. f7 {[%clk 0:00:07]}  Qh6+ {[%clk 0:00:03]} 61. Kg8 {[%clk 0:00:07]}  Qg6+ {[%clk 0:00:03]} 62. Kh8 {[%clk 0:00:08]}  Qf6+ {[%clk 0:00:04]} 63. Kg8 {[%clk 0:00:08]}  Qe6 {[%clk 0:00:04]} 64. Kh8 {[%clk 0:00:08]}  Qe7 {[%clk 0:00:04]} 65. Kg8 {[%clk 0:00:08]}  Qg5+ {[%clk 0:00:03]} 66. Kh8 {[%clk 0:00:08]}  Qh5+ {[%clk 0:00:02]} 67. Kg8 {[%clk 0:00:08]}  Qg6+ {[%clk 0:00:03]} 68. Kh8 {[%clk 0:00:09]}  Qxf7 {[%clk 0:00:03]} 1/2-1/2


[Site "https://www.chess.com"]

[Event "Titled Tuesday Blitz June 27 Late 2023"]
[White "Zhigalko, Sergei"]
[Black "marik_spb"]
[WhiteFideId "13502956"]
[WhiteElo "2900"]
[BlackElo "2481"]
[Result "1-0"]
[Round "1"]
[TimeControl "180+2"]
[Date "2023.06.27"]
[WhiteClock "0:00:20"]
[BlackClock "0:00:00"]
[Board "39"]

1. e4 {[%clk 0:03:00]}  c6 {[%clk 0:02:58]} 2. d4 {[%clk 0:03:00]}  d5 {[%clk 0:02:59]} 3. e5 {[%clk 0:03:01]}  Bf5 {[%clk 0:02:57]} 4. Nf3 {[%clk 0:03:01]}  e6 {[%clk 0:02:57]} 5. Be2 {[%clk 0:03:01]}  Nd7 {[%clk 0:02:57]} 6. O-O {[%clk 0:02:59]}  a6 {[%clk 0:02:58]} 7. Nbd2 {[%clk 0:02:59]}  h6 {[%clk 0:02:51]} 8. c4 {[%clk 0:02:59]}  Ne7 {[%clk 0:02:39]} 9. a4 {[%clk 0:02:58]}  g5 {[%clk 0:02:35]} 10. a5 {[%clk 0:02:55]}  dxc4 {[%clk 0:02:05]} 11. Nxc4 {[%clk 0:02:54]}  Nd5 {[%clk 0:02:04]} 12. Ne1 {[%clk 0:02:36]}  Rc8 {[%clk 0:02:00]} 13. Bd3 {[%clk 0:02:32]}  Bxd3 {[%clk 0:01:56]} 14. Nxd3 {[%clk 0:02:33]}  c5 {[%clk 0:01:52]} 15. b3 {[%clk 0:02:10]}  cxd4 {[%clk 0:01:48]} 16. Bb2 {[%clk 0:02:10]}  b5 {[%clk 0:01:44]} 17. axb6 {[%clk 0:02:08]}  N7xb6 {[%clk 0:01:43]} 18. Rxa6 {[%clk 0:01:54]}  Be7 {[%clk 0:01:04]} 19. Nd6+ {[%clk 0:01:38]}  Bxd6 {[%clk 0:01:02]} 20. exd6 {[%clk 0:01:39]}  Qxd6 {[%clk 0:00:58]} 21. Bxd4 {[%clk 0:01:39]}  O-O {[%clk 0:00:57]} 22. Ne5 {[%clk 0:01:20]}  Ra8 {[%clk 0:00:30]} 23. Nc4 {[%clk 0:01:08]}  Nxc4 {[%clk 0:00:25]} 24. Rxd6 {[%clk 0:01:09]}  Nxd6 {[%clk 0:00:26]} 25. h4 {[%clk 0:01:06]}  Nf5 {[%clk 0:00:22]} 26. hxg5 {[%clk 0:01:04]}  hxg5 {[%clk 0:00:23]} 27. Qh5 {[%clk 0:00:54]}  f6 {[%clk 0:00:12]} 28. Qg6+ {[%clk 0:00:51]}  Ng7 {[%clk 0:00:12]} 29. g3 {[%clk 0:00:35]}  Rad8 {[%clk 0:00:10]} 30. Ra1 {[%clk 0:00:32]}  Rf7 {[%clk 0:00:07]} 31. Bc5 {[%clk 0:00:28]}  Rc7 {[%clk 0:00:05]} 32. b4 {[%clk 0:00:28]}  Rcd7 {[%clk 0:00:03]} 33. Ra6 {[%clk 0:00:23]}  Re8 {[%clk 0:00:02]} 34. b5 {[%clk 0:00:20]}  Rb7 {[%clk 0:00:02]} 35. b6 {[%clk 0:00:19]}  e5 {[%clk 0:00:02]} 36. Ra7 {[%clk 0:00:19]}  Rxa7 {[%clk 0:00:01]} 37. bxa7 {[%clk 0:00:20]}  e4 {[%clk 0:00:01]} 38. Qxe8+ {[%clk 0:00:19]}  Nxe8 {[%clk 0:00:02]} 39. a8=Q {[%clk 0:00:20]}  Nc7 {[%clk 0:00:02]} 40. Qxe4 {[%clk 0:00:20]}  Kf7 {[%clk 0:00:03]} 41. Qe7+ {[%clk 0:00:20]}  Kg6 {[%clk 0:00:04]} 42. Bd6 {[%clk 0:00:20]}  Nb5 {[%clk 0:00:00]} 43. Qxe8+ {[%clk 0:00:20]} 1-0


[Site "https://www.chess.com"]

[Event "Titled Tuesday Blitz June 27 Late 2023"]
[White "Chigaev, Maksim"]
[Black "Smiechu"]
[WhiteFideId "4108116"]
[WhiteElo "2895"]
[BlackElo "2475"]
[Result "1-0"]
[Round "1"]
[TimeControl "180+2"]
[Date "2023.06.27"]
[WhiteClock "0:00:38"]
[BlackClock "0:00:08"]
[Board "41"]

1. e4 {[%clk 0:02:59]}  c5 {[%clk 0:02:59]} 2. Nf3 {[%clk 0:02:59]}  g6 {[%clk 0:02:59]} 3. c3 {[%clk 0:02:56]}  Bg7 {[%clk 0:02:58]} 4. d4 {[%clk 0:02:55]}  cxd4 {[%clk 0:02:59]} 5. cxd4 {[%clk 0:02:56]}  d5 {[%clk 0:02:59]} 6. e5 {[%clk 0:02:56]}  Nh6 {[%clk 0:02:59]} 7. h3 {[%clk 0:02:55]}  O-O {[%clk 0:02:51]} 8. Nc3 {[%clk 0:02:56]}  Bf5 {[%clk 0:02:47]} 9. g4 {[%clk 0:02:49]}  Be4 {[%clk 0:02:43]} 10. Bg2 {[%clk 0:02:50]}  f6 {[%clk 0:02:27]} 11. O-O {[%clk 0:02:49]}  fxe5 {[%clk 0:02:08]} 12. Nxe4 {[%clk 0:02:47]}  dxe4 {[%clk 0:02:05]} 13. Nxe5 {[%clk 0:02:28]}  Nf7 {[%clk 0:02:03]} 14. Nxf7 {[%clk 0:02:11]}  Rxf7 {[%clk 0:02:03]} 15. Bxe4 {[%clk 0:02:12]}  Nc6 {[%clk 0:02:02]} 16. d5 {[%clk 0:02:13]}  Ne5 {[%clk 0:01:49]} 17. Qb3 {[%clk 0:02:11]}  Qd7 {[%clk 0:01:38]} 18. f4 {[%clk 0:01:48]}  Raf8 {[%clk 0:01:34]} 19. d6 {[%clk 0:01:43]}  Kh8 {[%clk 0:01:09]} 20. Bd5 {[%clk 0:01:23]}  Rf6 {[%clk 0:00:50]} 21. Qxb7 {[%clk 0:00:51]}  Qxd6 {[%clk 0:00:38]} 22. Be3 {[%clk 0:00:52]}  Nd7 {[%clk 0:00:28]} 23. Rad1 {[%clk 0:00:49]}  Nc5 {[%clk 0:00:18]} 24. Qxa7 {[%clk 0:00:48]}  Ne6 {[%clk 0:00:10]} 25. Bxe6 {[%clk 0:00:36]}  Qxe6 {[%clk 0:00:10]} 26. Bd4 {[%clk 0:00:36]}  Rxf4 {[%clk 0:00:09]} 27. Rxf4 {[%clk 0:00:36]}  Rxf4 {[%clk 0:00:09]} 28. Qb8+ {[%clk 0:00:37]}  Rf8 {[%clk 0:00:09]} 29. Qxf8+ {[%clk 0:00:37]}  Qg8 {[%clk 0:00:08]} 30. Bxg7# {[%clk 0:00:38]} 1-0


[Site "https://www.chess.com"]

[Event "Titled Tuesday Blitz June 27 Late 2023"]
[White "Kovalevsky, Stanislav"]
[Black "Henriquez Villagra, Cristobal"]
[WhiteFideId "13508598"]
[BlackFideId "3409350"]
[WhiteElo "2475"]
[BlackElo "2891"]
[Result "0-1"]
[Round "1"]
[TimeControl "180+2"]
[Date "2023.06.27"]
[WhiteClock "0:01:18"]
[BlackClock "0:01:19"]
[Board "42"]

1. c4 {[%clk 0:03:00]}  d6 {[%clk 0:02:59]} 2. Nc3 {[%clk 0:02:59]}  e5 {[%clk 0:02:59]} 3. g3 {[%clk 0:02:59]}  f5 {[%clk 0:02:57]} 4. Bg2 {[%clk 0:03:00]}  Nf6 {[%clk 0:02:58]} 5. b4 {[%clk 0:03:00]}  g6 {[%clk 0:02:50]} 6. Bb2 {[%clk 0:03:00]}  Bg7 {[%clk 0:02:50]} 7. d4 {[%clk 0:02:58]}  O-O {[%clk 0:02:49]} 8. dxe5 {[%clk 0:02:57]}  dxe5 {[%clk 0:02:48]} 9. Qxd8 {[%clk 0:02:55]}  Rxd8 {[%clk 0:02:49]} 10. Nd5 {[%clk 0:02:55]}  Nxd5 {[%clk 0:02:37]} 11. Bxd5+ {[%clk 0:02:53]}  Kf8 {[%clk 0:02:37]} 12. Nf3 {[%clk 0:02:52]}  c6 {[%clk 0:02:33]} 13. O-O-O {[%clk 0:02:34]}  cxd5 {[%clk 0:02:32]} 14. cxd5 {[%clk 0:02:35]}  e4 {[%clk 0:02:30]} 15. Ne5 {[%clk 0:02:32]}  Nd7 {[%clk 0:02:26]} 16. Nc4 {[%clk 0:02:29]}  Nb6 {[%clk 0:02:20]} 17. Nxb6 {[%clk 0:02:25]}  axb6 {[%clk 0:02:19]} 18. a3 {[%clk 0:02:25]}  Bd7 {[%clk 0:02:16]} 19. Bxg7+ {[%clk 0:02:24]}  Kxg7 {[%clk 0:02:17]} 20. Kb2 {[%clk 0:02:24]}  Rac8 {[%clk 0:02:16]} 21. Rc1 {[%clk 0:02:23]}  Kf6 {[%clk 0:02:17]} 22. f4 {[%clk 0:02:19]}  Bb5 {[%clk 0:01:59]} 23. Rxc8 {[%clk 0:02:16]}  Rxc8 {[%clk 0:02:00]} 24. e3 {[%clk 0:02:13]}  Bd3 {[%clk 0:01:58]} 25. a4 {[%clk 0:02:02]}  Ke7 {[%clk 0:01:57]} 26. Ra1 {[%clk 0:02:00]}  Kd6 {[%clk 0:01:57]} 27. a5 {[%clk 0:02:01]}  Ra8 {[%clk 0:01:56]} 28. Rc1 {[%clk 0:01:54]}  bxa5 {[%clk 0:01:45]} 29. bxa5 {[%clk 0:01:54]}  h5 {[%clk 0:01:38]} 30. Kb3 {[%clk 0:01:51]}  Rxa5 {[%clk 0:01:37]} 31. Rc8 {[%clk 0:01:51]}  Ra6 {[%clk 0:01:37]} 32. Rd8+ {[%clk 0:01:49]}  Kc5 {[%clk 0:01:37]} 33. Kc3 {[%clk 0:01:46]}  Rd6 {[%clk 0:01:35]} 34. Rb8 {[%clk 0:01:41]}  b5 {[%clk 0:01:34]} 35. Rg8 {[%clk 0:01:35]}  Kxd5 {[%clk 0:01:34]} 36. Kb4 {[%clk 0:01:36]}  Bc4 {[%clk 0:01:20]} 37. Rg7 {[%clk 0:01:35]}  Ra6 {[%clk 0:01:17]} 38. Rg8 {[%clk 0:01:29]}  Ra4+ {[%clk 0:01:17]} 39. Kc3 {[%clk 0:01:29]}  b4+ {[%clk 0:01:18]} 40. Kb2 {[%clk 0:01:29]}  Ra2+ {[%clk 0:01:19]} 41. Kb1 {[%clk 0:01:29]}  Rxh2 {[%clk 0:01:19]} 42. Rxg6 {[%clk 0:01:30]}  Bd3+ {[%clk 0:01:18]} 43. Kc1 {[%clk 0:01:26]}  Kc4 {[%clk 0:01:19]} 44. Rd6 {[%clk 0:01:21]}  Kc3 {[%clk 0:01:19]} 45. Rb6 {[%clk 0:01:18]}  Bc4 {[%clk 0:01:19]} 0-1


[Site "https://www.chess.com"]

[Event "Titled Tuesday Blitz June 27 Late 2023"]
[White "Haitin, Ilja"]
[Black "Ibarra Jerez, Jose Carlos"]
[WhiteFideId "4501764"]
[BlackFideId "2226332"]
[WhiteElo "2472"]
[BlackElo "2887"]
[Result "0-1"]
[Round "1"]
[TimeControl "180+2"]
[Date "2023.06.27"]
[WhiteClock "0:00:20"]
[BlackClock "0:01:39"]
[Board "44"]

1. d4 {[%clk 0:02:58]}  Nf6 {[%clk 0:02:59]} 2. c4 {[%clk 0:02:58]}  d6 {[%clk 0:02:59]} 3. Nc3 {[%clk 0:02:57]}  e5 {[%clk 0:03:00]} 4. Nf3 {[%clk 0:02:55]}  e4 {[%clk 0:03:00]} 5. Ng5 {[%clk 0:02:54]}  Qe7 {[%clk 0:03:00]} 6. g3 {[%clk 0:02:45]}  h6 {[%clk 0:03:00]} 7. Nh3 {[%clk 0:02:45]}  c6 {[%clk 0:03:00]} 8. Bg2 {[%clk 0:02:38]}  Bf5 {[%clk 0:03:00]} 9. b3 {[%clk 0:02:07]}  g6 {[%clk 0:02:59]} 10. Bb2 {[%clk 0:02:07]}  Bg7 {[%clk 0:02:55]} 11. Qd2 {[%clk 0:02:07]}  O-O {[%clk 0:02:52]} 12. O-O-O {[%clk 0:02:04]}  a6 {[%clk 0:02:49]} 13. Nf4 {[%clk 0:01:56]}  g5 {[%clk 0:02:45]} 14. Nh3 {[%clk 0:01:55]}  b5 {[%clk 0:02:42]} 15. g4 {[%clk 0:01:30]}  Nxg4 {[%clk 0:02:36]} 16. f3 {[%clk 0:01:20]}  e3 {[%clk 0:02:33]} 17. Qe1 {[%clk 0:01:19]}  Nf6 {[%clk 0:02:28]} 18. f4 {[%clk 0:01:05]}  g4 {[%clk 0:02:25]} 19. Ng5 {[%clk 0:01:04]}  b4 {[%clk 0:02:18]} 20. Na4 {[%clk 0:00:57]}  hxg5 {[%clk 0:02:17]} 21. fxg5 {[%clk 0:00:57]}  Ne4 {[%clk 0:02:17]} 22. Qh4 {[%clk 0:00:48]}  Qxg5 {[%clk 0:01:46]} 23. Qxg5 {[%clk 0:00:42]}  Nxg5 {[%clk 0:01:46]} 24. Rhf1 {[%clk 0:00:42]}  Be4 {[%clk 0:01:43]} 25. Bxe4 {[%clk 0:00:42]}  Nxe4 {[%clk 0:01:44]} 26. Rf4 {[%clk 0:00:43]}  f5 {[%clk 0:01:44]} 27. h3 {[%clk 0:00:35]}  Nf2 {[%clk 0:01:41]} 28. Rg1 {[%clk 0:00:20]}  Nxh3 {[%clk 0:01:39]} 0-1


[Site "https://www.chess.com"]

[Event "Titled Tuesday Blitz June 27 Late 2023"]
[White "Kielinkei"]
[Black "Mikaelyan, Arman"]
[BlackFideId "13304852"]
[WhiteElo "2470"]
[BlackElo "2880"]
[Result "0-1"]
[Round "1"]
[TimeControl "180+2"]
[Date "2023.06.27"]
[WhiteClock "0:00:00"]
[BlackClock "0:00:15"]
[Board "46"]

1. d4 {[%clk 0:02:59]}  Nf6 {[%clk 0:02:59]} 2. c4 {[%clk 0:02:58]}  g6 {[%clk 0:02:57]} 3. Nc3 {[%clk 0:02:58]}  Bg7 {[%clk 0:02:58]} 4. e4 {[%clk 0:02:58]}  O-O {[%clk 0:02:59]} 5. Be2 {[%clk 0:02:56]}  c5 {[%clk 0:02:58]} 6. d5 {[%clk 0:02:49]}  e6 {[%clk 0:02:58]} 7. Nf3 {[%clk 0:02:48]}  d6 {[%clk 0:02:54]} 8. O-O {[%clk 0:02:48]}  e5 {[%clk 0:02:45]} 9. Be3 {[%clk 0:02:43]}  Nbd7 {[%clk 0:02:45]} 10. Nd2 {[%clk 0:02:41]}  Kh8 {[%clk 0:02:40]} 11. f3 {[%clk 0:02:40]}  Ng8 {[%clk 0:02:40]} 12. a3 {[%clk 0:02:36]}  f5 {[%clk 0:02:40]} 13. b4 {[%clk 0:02:34]}  Bh6 {[%clk 0:02:40]} 14. Bxh6 {[%clk 0:02:31]}  Nxh6 {[%clk 0:02:41]} 15. Nb3 {[%clk 0:02:27]}  cxb4 {[%clk 0:02:36]} 16. axb4 {[%clk 0:02:24]}  Qb6+ {[%clk 0:02:33]} 17. Kh1 {[%clk 0:02:12]}  Qxb4 {[%clk 0:02:32]} 18. Nb5 {[%clk 0:02:08]}  Nc5 {[%clk 0:01:45]} 19. Qd2 {[%clk 0:01:34]}  Qxd2 {[%clk 0:01:39]} 20. Nxd2 {[%clk 0:01:35]}  Nf7 {[%clk 0:01:27]} 21. Nc7 {[%clk 0:01:25]}  Rb8 {[%clk 0:01:26]} 22. Rxa7 {[%clk 0:01:25]}  Bd7 {[%clk 0:01:22]} 23. Rb1 {[%clk 0:01:16]}  fxe4 {[%clk 0:01:21]} 24. Nxe4 {[%clk 0:01:11]}  Bf5 {[%clk 0:01:12]} 25. Nxc5 {[%clk 0:00:50]}  Bxb1 {[%clk 0:01:13]} 26. Nd7 {[%clk 0:00:49]}  e4 {[%clk 0:00:46]} 27. Nxf8 {[%clk 0:00:44]}  Rxf8 {[%clk 0:00:47]} 28. Rxb7 {[%clk 0:00:43]}  Bd3 {[%clk 0:00:47]} 29. Rb2 {[%clk 0:00:24]}  Ne5 {[%clk 0:00:43]} 30. Ne6 {[%clk 0:00:17]}  Ra8 {[%clk 0:00:41]} 31. h3 {[%clk 0:00:13]}  e3 {[%clk 0:00:34]} 32. Bxd3 {[%clk 0:00:10]}  Nxd3 {[%clk 0:00:35]} 33. Re2 {[%clk 0:00:10]}  Ra3 {[%clk 0:00:35]} 34. Kh2 {[%clk 0:00:05]}  Ne5 {[%clk 0:00:26]} 35. c5 {[%clk 0:00:05]}  dxc5 {[%clk 0:00:27]} 36. d6 {[%clk 0:00:04]}  Nd7 {[%clk 0:00:17]} 37. Nf4 {[%clk 0:00:02]}  c4 {[%clk 0:00:16]} 38. Nd5 {[%clk 0:00:03]}  Rd3 {[%clk 0:00:14]} 39. Nxe3 {[%clk 0:00:00]}  c3 {[%clk 0:00:15]} 0-1


[Site "https://www.chess.com"]

[Event "Titled Tuesday Blitz June 27 Late 2023"]
[White "NLLO777"]
[Black "Bordi, Kevin"]
[BlackFideId "621862"]
[WhiteElo "2453"]
[BlackElo "2859"]
[Result "1/2-1/2"]
[Round "1"]
[TimeControl "180+2"]
[Date "2023.06.27"]
[WhiteClock "0:00:10"]
[BlackClock "0:00:20"]
[Board "52"]

1. d4 {[%clk 0:03:00]}  d5 {[%clk 0:02:59]} 2. c4 {[%clk 0:03:00]}  c6 {[%clk 0:02:57]} 3. Nf3 {[%clk 0:02:59]}  Nf6 {[%clk 0:02:58]} 4. Qc2 {[%clk 0:02:57]}  g6 {[%clk 0:02:58]} 5. cxd5 {[%clk 0:02:57]}  cxd5 {[%clk 0:02:58]} 6. Nc3 {[%clk 0:02:58]}  Nc6 {[%clk 0:02:58]} 7. Bf4 {[%clk 0:02:58]}  Bf5 {[%clk 0:02:58]} 8. Qb3 {[%clk 0:02:57]}  Bg7 {[%clk 0:02:59]} 9. e3 {[%clk 0:02:52]}  O-O {[%clk 0:02:58]} 10. Be2 {[%clk 0:02:51]}  Qb6 {[%clk 0:02:54]} 11. O-O {[%clk 0:02:47]}  Qxb3 {[%clk 0:02:54]} 12. axb3 {[%clk 0:02:47]}  Rfd8 {[%clk 0:02:51]} 13. Rfc1 {[%clk 0:02:45]}  Rac8 {[%clk 0:02:47]} 14. h3 {[%clk 0:02:45]}  Ne4 {[%clk 0:02:45]} 15. g4 {[%clk 0:02:39]}  Nxc3 {[%clk 0:02:43]} 16. bxc3 {[%clk 0:02:37]}  Be6 {[%clk 0:02:43]} 17. b4 {[%clk 0:02:32]}  a6 {[%clk 0:02:41]} 18. b5 {[%clk 0:02:30]}  axb5 {[%clk 0:02:41]} 19. Bxb5 {[%clk 0:02:30]}  h5 {[%clk 0:02:35]} 20. gxh5 {[%clk 0:02:30]}  gxh5 {[%clk 0:02:35]} 21. Kg2 {[%clk 0:02:31]}  Bf5 {[%clk 0:02:32]} 22. c4 {[%clk 0:02:22]}  Be4 {[%clk 0:02:28]} 23. Kg3 {[%clk 0:02:19]}  dxc4 {[%clk 0:02:11]} 24. Bxc4 {[%clk 0:02:16]}  e6 {[%clk 0:02:06]} 25. h4 {[%clk 0:02:01]}  Ne7 {[%clk 0:02:03]} 26. Ng5 {[%clk 0:01:55]}  Nf5+ {[%clk 0:01:46]} 27. Kh3 {[%clk 0:01:55]}  Bd5 {[%clk 0:01:44]} 28. Bxd5 {[%clk 0:01:52]}  exd5 {[%clk 0:01:43]} 29. Rxc8 {[%clk 0:01:34]}  Rxc8 {[%clk 0:01:43]} 30. Rb1 {[%clk 0:01:35]}  Rc2 {[%clk 0:01:43]} 31. Rxb7 {[%clk 0:01:33]}  Rxf2 {[%clk 0:01:34]} 32. Rxf7 {[%clk 0:01:32]}  Nxe3 {[%clk 0:01:26]} 33. Rxg7+ {[%clk 0:01:29]}  Kxg7 {[%clk 0:01:27]} 34. Bxe3 {[%clk 0:01:30]}  Re2 {[%clk 0:01:23]} 35. Bf4 {[%clk 0:01:28]}  Kg6 {[%clk 0:01:22]} 36. Kg3 {[%clk 0:01:27]}  Kf5 {[%clk 0:01:21]} 37. Nf7 {[%clk 0:01:09]}  Ra2 {[%clk 0:01:20]} 38. Nd6+ {[%clk 0:01:06]}  Ke6 {[%clk 0:01:20]} 39. Be5 {[%clk 0:01:04]}  Rb2 {[%clk 0:01:10]} 40. Ne8 {[%clk 0:01:01]}  Kf5 {[%clk 0:01:06]} 41. Ng7+ {[%clk 0:01:00]}  Kg6 {[%clk 0:01:06]} 42. Ne6 {[%clk 0:01:00]}  Kf5 {[%clk 0:01:02]} 43. Nf4 {[%clk 0:00:59]}  Rb3+ {[%clk 0:01:02]} 44. Kf2 {[%clk 0:00:58]}  Kg4 {[%clk 0:01:02]} 45. Nxd5 {[%clk 0:00:55]}  Kxh4 {[%clk 0:01:02]} 46. Ne3 {[%clk 0:00:53]}  Kg5 {[%clk 0:00:58]} 47. d5 {[%clk 0:00:51]}  h4 {[%clk 0:00:58]} 48. d6 {[%clk 0:00:51]}  h3 {[%clk 0:00:56]} 49. Kf3 {[%clk 0:00:34]}  Rb7 {[%clk 0:00:46]} 50. Ke4 {[%clk 0:00:27]}  Rh7 {[%clk 0:00:43]} 51. Bh2 {[%clk 0:00:26]}  Kf6 {[%clk 0:00:42]} 52. Kd5 {[%clk 0:00:24]}  Kf7 {[%clk 0:00:34]} 53. Ng4 {[%clk 0:00:21]}  Rh5+ {[%clk 0:00:30]} 54. Ne5+ {[%clk 0:00:20]}  Ke8 {[%clk 0:00:28]} 55. Ke6 {[%clk 0:00:15]}  Rh6+ {[%clk 0:00:26]} 56. Kd5 {[%clk 0:00:14]}  Rh5 {[%clk 0:00:23]} 57. d7+ {[%clk 0:00:13]}  Kd8 {[%clk 0:00:19]} 58. Ke6 {[%clk 0:00:12]}  Rh6+ {[%clk 0:00:19]} 59. Kf5 {[%clk 0:00:10]}  Rh5+ {[%clk 0:00:19]} 60. Kf6 {[%clk 0:00:07]}  Rxe5 {[%clk 0:00:18]} 61. Kxe5 {[%clk 0:00:08]}  Kxd7 {[%clk 0:00:19]} 62. Kf4 {[%clk 0:00:09]}  Ke6 {[%clk 0:00:19]} 63. Kg3 {[%clk 0:00:10]}  Kf5 {[%clk 0:00:20]} 64. Kxh3 {[%clk 0:00:10]} 1/2-1/2


[Site "https://www.chess.com"]

[Event "Titled Tuesday Blitz June 27 Late 2023"]
[White "Sukandar, Irine Kharisma"]
[Black "Krzyzanowski, Marcin"]
[WhiteFideId "7101937"]
[BlackFideId "1132199"]
[WhiteElo "2447"]
[BlackElo "2838"]
[Result "0-1"]
[Round "1"]
[TimeControl "180+2"]
[Date "2023.06.27"]
[WhiteClock "0:00:17"]
[BlackClock "0:00:55"]
[Board "56"]

1. d4 {[%clk 0:02:57]}  Nf6 {[%clk 0:02:58]} 2. c4 {[%clk 0:02:56]}  d6 {[%clk 0:02:57]} 3. Nc3 {[%clk 0:02:56]}  e5 {[%clk 0:02:57]} 4. dxe5 {[%clk 0:02:52]}  dxe5 {[%clk 0:02:58]} 5. Qxd8+ {[%clk 0:02:52]}  Kxd8 {[%clk 0:02:58]} 6. Nf3 {[%clk 0:02:52]}  Nfd7 {[%clk 0:02:52]} 7. g3 {[%clk 0:02:47]}  f6 {[%clk 0:02:50]} 8. Bg2 {[%clk 0:02:47]}  c6 {[%clk 0:02:49]} 9. O-O {[%clk 0:02:46]}  Kc7 {[%clk 0:02:49]} 10. b3 {[%clk 0:02:45]}  a5 {[%clk 0:02:49]} 11. Be3 {[%clk 0:02:42]}  Bc5 {[%clk 0:02:47]} 12. Bxc5 {[%clk 0:02:33]}  Nxc5 {[%clk 0:02:48]} 13. Nd2 {[%clk 0:02:29]}  Nba6 {[%clk 0:02:45]} 14. Nde4 {[%clk 0:02:29]}  Bf5 {[%clk 0:02:43]} 15. Nxc5 {[%clk 0:02:01]}  Nxc5 {[%clk 0:02:43]} 16. e4 {[%clk 0:02:01]}  Be6 {[%clk 0:02:39]} 17. f4 {[%clk 0:02:01]}  Rhd8 {[%clk 0:02:33]} 18. Rfd1 {[%clk 0:02:01]}  Bg4 {[%clk 0:02:27]} 19. Rxd8 {[%clk 0:01:49]}  Rxd8 {[%clk 0:02:28]} 20. h3 {[%clk 0:01:49]}  Bh5 {[%clk 0:02:22]} 21. g4 {[%clk 0:01:20]}  Bf7 {[%clk 0:02:20]} 22. fxe5 {[%clk 0:01:18]}  fxe5 {[%clk 0:02:21]} 23. Rf1 {[%clk 0:01:18]}  Be6 {[%clk 0:02:17]} 24. Rd1 {[%clk 0:01:14]}  Rxd1+ {[%clk 0:02:12]} 25. Nxd1 {[%clk 0:01:14]}  a4 {[%clk 0:02:13]} 26. b4 {[%clk 0:00:47]}  Nd3 {[%clk 0:02:12]} 27. a3 {[%clk 0:00:45]}  c5 {[%clk 0:01:44]} 28. Bf1 {[%clk 0:00:38]}  Nb2 {[%clk 0:00:55]} 29. bxc5 {[%clk 0:00:17]}  Nxd1 {[%clk 0:00:55]} 0-1


[Site "https://www.chess.com"]